Cogmind - Beta 13 @@@ ROGUE MODE // 2024.05.04 @ 17:34:53 Player: Cwaftwer Result: Destroyed by G-34 Mercenary with Small Laser Performance ------------- Evolutions (0) 0 Regions Visited (1) 200 Robots Destroyed (17) 85 Value Destroyed (376) 376 Prototype IDs (2) 40 Alien Tech Used (0) 0 Bonus (0) 0 TOTAL SCORE: 701 Bonus ------- None Cogmind --------- Core Integrity 0/250 Matter 298/300 Energy 160/160 System Corruption 0% Temperature Cool (48) Movement Rolling (115) Ox1 Location -10/Materials Parts ------- > --- POWER (1) -------- Light Nuclear Core > --- PROPULSION (2) --- Compact Wheel > --- UTILITY (2) ------ Large Storage Unit Signal Interpreter > --- WEAPON (2) ------- Small Laser Light Assault Rifle > --- INVENTORY (15) --- Ion Engine Light Ion Engine Light Nuclear Core Wheel Wheel Flight Unit Flight Unit Improved Heat Sink Sensor Array Improved Terrain Scanner Core Shielding Light Armor Plating Light Armor Plating Small Laser Peak State ------------ > --- POWER ------------ Light Nuclear Core > --- PROPULSION ------- Compact Wheel Compact Wheel > --- UTILITY ---------- Small Storage Unit Core Shielding > --- WEAPON ----------- Small Laser Small Laser > --- INVENTORY -------- Light Ion Engine Flight Unit Flight Unit Improved Heat Sink Sensor Array Improved Terrain Scanner Light Assault Rifle [Rating: 10] Favorites ----------- Power Light Nuclear Core Engine Ion Engine Power Core Light Nuclear Core Propulsion Compact Wheel Wheel Compact Wheel Utility Signal Interpreter Device Improved Terrain Scanner Storage Large Storage Unit Processor Signal Interpreter Protection Core Shielding Weapon Small Laser Energy Gun Small Laser Ballistic Gun Light Assault Rifle Build | -11 -10 ------- Run | Yrd Mat Slots Evolved . | . . Power . | . . Propulsion . | . . Utility . | . . Weapon . | . . Parts Attached 20 | 8 12 Power 3 | 1 2 Engine 2 | 1 1 Core 1 | . 1 Reactor . | . . Propulsion 5 | 3 2 Treads . | . . Leg . | . . Wheel 5 | 3 2 Hover . | . . Flight . | . . Utility 7 | 2 5 Device 2 | 1 1 Storage 3 | 1 2 Processor 1 | . 1 Hackware . | . . Protection 1 | . 1 Artifact . | . . Weapon 5 | 2 3 Energy Gun 4 | 2 2 Energy Cannon . | . . Ballistic Gun 1 | . 1 Ballistic Cannon . | . . Launcher . | . . Special Weapon . | . . Impact Weapon . | . . Slashing Weapon . | . . Piercing Weapon . | . . Special Melee Weapon . | . . Unidentified Prototypes . | . . Parts Lost 6 | . 6 Power 1 | . 1 Propulsion 3 | . 3 Utility . | . . Weapon 2 | . 2 Highest Loss Streak 4 | . 4 To Critical Strikes . | . . Average Slot Usage (%) 87 | . 87 Engine 2 | . 2 Core 9 | . 9 Wheel 19 | . 19 Device 4 | . 4 Storage 13 | . 13 Processor 7 | . 7 Protection 2 | . 2 Energy Gun 26 | . 26 Ballistic Gun 1 | . 1 Naked Turns . | . . Heaviest Build 27 | 14 27 Greatest Support 32 | 26 32 Greatest Overweight (x) 4 | . 4 Average Overweight (x) . | . . Largest Inventory Capacity 15 | 8 15 Average Capacity 11 | 7 11 Most Carried 14 | 3 14 Average Carried 6 | 1 7 Final Capacity 15 | 8 15 Final Carried 14 | 1 14 Class Distribution -------------------- 100% | Mutant Dominant Class ---------------- Mutant | -10/Materials Resources | -11 -10 ----------- Run | Yrd Mat Matter Collected 444 | 254 190 Remotely . | . . Salvage Created 726 | 39 687 Parts 35 | 3 32 Haulers Intercepted . | . . Recyclers Shooed 3 | 1 2 Parts Field Recycled . | . . Retrieved Matter . | . . Parts Self-Destructed . | . . Prevented . | . . Kills | -11 -10 ------- Run | Yrd Mat Combat Hostiles Destroyed 11 | . 11 Guns 11 | . 11 Classes Destroyed 5 | 1 4 Tunneler 2 | 2 . Recycler 3 | . 3 Watcher 1 | . 1 Swarmer 3 | . 3 Grunt 8 | . 8 Best Kill Streak 4 | 2 4 Combat Bots Only 4 | . 4 Max Kills in Single Turn 2 | 1 2 Gunslinging . | . . Exploded . | . . Melee . | . . Uniques/NPCs Destroyed . | . . Combat | -11 -10 -------- Run | Yrd Mat Hostile Shots Fired 86 | . 86 Missed 16 | . 16 Damage Taken 868 | . 868 Core 257 | . 257 Absorbed by Shields . | . . Redirected to Shielding 9 | . 9 Core Remaining (%) 100 | 100 . Volleys Fired 63 | 4 59 Largest 2 | 2 2 Hottest 90 | 90 90 Shots Fired 120 | 8 112 Gun 120 | 8 112 Cannon . | . . Launcher . | . . Special . | . . Kinetic 9 | . 9 Thermal 111 | 8 103 Explosive . | . . Electromagnetic . | . . Robot Hit Streak 10 | 3 10 Robot Miss Streak 3 | 3 2 Penetration Max . | . . Secondary Targets . | . . Shots Hit Robots 72 | 4 68 Core Hits 30 | 2 28 Critical Kills . | . . Critical Parts Destroyed . | . . Critical Strikes 1 | 1 . Burn 1 | 1 . Melee Attacks . | . . Impact . | . . Slashing . | . . Piercing . | . . Sneak Attacks . | . . Combat Hostiles . | . . Follow-up Attacks . | . . Damage Inflicted 833 | 59 774 Guns 833 | 59 774 Cannons . | . . Explosions . | . . Melee . | . . Ramming . | . . Kinetic 29 | . 29 Thermal 804 | 59 745 Explosive . | . . Electromagnetic . | . . Impact . | . . Slashing . | . . Piercing . | . . Highest Corruption . | . . Average Corruption . | . . Corruption Purged . | . . Corruption Blocked . | . . Overload Shots . | . . Overflow Damage . | . . Projectiles . | . . Explosions . | . . Melee . | . . Knockbacks . | . . Impact . | . . Kinetic . | . . Secondary . | . . Self-Inflicted Damage . | . . Shots . | . . Rammed . | . . Targets Rammed . | . . Kicked . | . . Crushed . | . . Highest Temperature 450 | 90 450 Average Temperature 125 | 40 133 Received Heat Transfer 429 | . 429 Effects 6 | . 6 Shutdowns 2 | . 2 Matter Decay 1 | . 1 Damage (minor) 1 | . 1 Damage (major) 2 | . 2 Siege Activations . | . . Robots Corrupted . | . . Combat Hostiles . | . . Parts Fried . | . . Impact Corruptions . | . . Robots Melted . | . . Combat Hostiles . | . . Parts Melted 6 | 2 4 Heat Transferred 2005 | 223 1782 Parts Sabotaged . | . . Parts Stolen . | . . Parts Stripped . | . . Power Chain Reactions . | . . Alert | -11 -10 ------- Run | Yrd Mat Peak Influence 213 | 10 213 Initial 6 | . 6 Average 56 | 2 60 Maximum Alert Level 1 | . 1 Low Security (%) 99 | 100 99 Level 1 . | . . Level 2 . | . . Level 3 . | . . Level 4 . | . . Level 5 . | . . High Security . | . . Max Security . | . . Squads Dispatched 3 | . 3 Investigation 1 | . 1 Extermination . | . . Reinforcement 2 | . 2 Assault . | . . Garrison . | . . Intercept . | . . Searches Triggered . | . . Construction Impeded . | . . Haulers Reinforced . | . . Active Scanning Responses . | . . Cargo Convoy Interrupts . | . . Stealth | -11 -10 --------- Run | Yrd Mat Distress Signals 1 | . 1 Communications Jammed . | . . Distress Signals . | . . Times Spotted 26 | . 26 Peak Tracking Total 5 | . 5 Tactical Retreats 5 | . 5 Traps | -11 -10 ------- Run | Yrd Mat Traps Triggered . | . . Indirectly . | . . Trap Hack Attempts . | . . Triggered . | . . Disarmed . | . . Reprogrammed . | . . Reused . | . . Traps Extracted . | . . Installed . | . . Triggered . | . . Machines | -11 -10 ---------- Run | Yrd Mat Machines Disabled . | . . Max in Single Turn . | . . Machines Repaired . | . . Machines Dismantled . | . . Machines Sabotaged . | . . Overloaded Fab Kills . | . . Hacking | -11 -10 --------- Run | Yrd Mat Machines Accessed 5 | . 5 Terminals 2 | . 2 Fabricators . | . . Repair Stations 1 | . 1 Recycling Units 2 | . 2 Scanalyzers . | . . Garrison Access . | . . Total Hacks 14 | . 14 Successful 8 | . 8 Failed 6 | . 6 Catastrophic . | . . Database Lockouts . | . . Manual . | . . Terminals 6 | . 6 Fabricators . | . . Repair Stations 4 | . 4 Recycling Units 4 | . 4 Scanalyzers . | . . Garrison Access . | . . Terminal Hacks 4 | . 4 Robot Analysis 1 | . 1 Prototype ID Bank 1 | . 1 Zone Layout 2 | . 2 Fabricator Hacks . | . . Repair Station Hacks 1 | . 1 Scan Component 1 | . 1 Recycling Unit Hacks 3 | . 3 Report Inventory 1 | . 1 Retrieve Components 2 | . 2 Scanalyzer . | . . Garrison Access Hacks . | . . Unauthorized Hacks . | . . Terminals . | . . Fabricators . | . . Repair Stations . | . . Recycling Units . | . . Scanalyzers . | . . Garrison Access . | . . Data Cores Recovered . | . . Used . | . . Hacking Detections 2 | . 2 Full Trace Events 1 | . 1 Feedback Events . | . . Feedback Blocked . | . . Robot Schematics Acquired . | . . Robots Built . | . . Authchips . | . . Time . | . . Total Robot Build Rating . | . . Part Schematics Acquired . | . . Parts Built . | . . Authchips . | . . Time . | . . Total Part Build Rating . | . . Parts Repaired . | . . Time . | . . Parts Recycled . | . . Recycled Matter . | . . Retrieved Matter . | . . Retrieved Components 8 | . 8 Parts Scanalyzed . | . . Part Schematics Acquired . | . . Parts Damaged . | . . Bothacking | -11 -10 ------------ Run | Yrd Mat Used RIF Installer . | . . Robots Hacked . | . . Non-combat . | . . Combat . | . . Robot Hacks Applied . | . . Relay Couplers Released . | . . Fabnet Peak Effective % . | . . Robots Rewired . | . . Allies Hacked . | . . Hacks Repelled . | . . Allies | -11 -10 -------- Run | Yrd Mat Total Allies . | . . Largest Group . | . . Highest-Rated Group . | . . Highest-Rated Ally . | . . Total Orders . | . . Ally Attacks . | . . Total Damage . | . . Kills . | . . Allies Corrupted . | . . Allies Melted . | . . Intel | -11 -10 ------- Run | Yrd Mat Robot Analysis Total 1 | . 1 Derelict Logs Recovered . | . . Drone Launches . | . . Drone Recoveries . | . . Exploration | -11 -10 ------------- Run | Yrd Mat Turns Passed 1350 | 85 1265 Spaces Moved 1004 | 65 939 Core 158 | 6 152 Treads . | . . Legs . | . . Wheels 846 | 59 787 Hover . | . . Flight . | . . Fastest Speed 50 | 50 50 Average Speed 103 | 85 104 Slowest Speed 250 | 90 250 Overloaded Moves . | . . Propulsion Burnouts . | . . Robots Hopped . | . . Cave-ins Triggered . | . . Exploration Rate (%) 50 | 4 96 Regions Visited 1 Branch Regions . Pre-discovered Areas . | . . Known Exits Taken . | . . Unknown Exits Taken 1 | 1 . Scrap Searched . | . . Spaces Dug . | . . Terrain Destroyed . | . . Melee . | . . Projectile . | . . AOE . | . . Terrain Rammed . | . . Walls Destroyed . | . . Machines Disabled . | . . Actions | -11 -10 --------- Run | Yrd Mat Total 1200 | 86 1114 Wait 75 | . 75 Move 1003 | 64 939 Hop . | . . Pick Up 32 | 9 23 Fast Attach . | . . Attach 13 | 7 6 Detach 1 | . 1 Swap 7 | 1 6 Drop 6 | 1 5 Fire 63 | 4 59 Melee . | . . Ram . | . . Kick . | . . Crush . | . . Escape Stasis . | . . Rewire . | . . Trap . | . . Miscellaneous . | . . Route ------- -11/Scrapyard -10/Materials (discovered 5 exits: *Mat x3 / [*Min] / [Sub]) History --------- Turn | Location | Event 4 | -11/Scrapyard | Discovered new exit (range 16) 86 | -11/Scrapyard | Entered Materials 146 | -10/Materials | Discovered new exit (range 6) 172 | -10/Materials | Discovered new exit (range 3) 295 | -10/Materials | Lost 4 parts (1p2n1w) 300 | -10/Materials | Build established: Mutant 321 | -10/Materials | Discovered new exit (range 15) 417 | -10/Materials | Discovered new exit (range 13) 435 | -10/Materials | Core integrity fell below 50% 754 | -10/Materials | Identified exit to Materials 887 | -10/Materials | Discovered exit to Materials (range 14) 1252 | -10/Materials | Core integrity fell below 20% 1351 | -10/Materials | Destroyed by G-34 Mercenary with Small Laser Last Messages --------------- TERMINAL." O-16 Technician uses terminal to summon reinforcements. ALERT: Hostiles spotted, dispatching reinforcements to Terminal M004. O-16 Technician locks terminal. Acquired Wheel. Sml. Laser destroyed. G-34 Mercenary destroyed. G-34 Mercenary heat spikes uncontrollably. G-34 Mercenary overheating. Aluminum Leg melted. G-34 Mercenary destroyed. Acquired 41 matter. Com. Wheel destroyed. G-34 Mercenary destroyed. Acquired 1 matter. Acquired Sml. Laser. Acquired Ion Engine. K-01 Serf cleans the Recycling Unit. Map ----- +----------------------------------------------------+ | #??#?????????# ] [ # # #?? | | ##?????????#?# ! # # #?? | | #????????????# # #"" """ #?? | | #??????#?????# ! !# #"Y """ #?? | | #??????????#?#####+#####+## #"" """ #?? | | #???????????????# # #?? | | #?????#?#???????# ###########?? | | #???????????????# ###+########?????? | | #?????????????### """ # #???? | | #?????????????#"" """ # #???? | | #?????#######?#"T """ # """ """ #???? | | #?????##!!!!###"" # """ """ #???? | | #?????#! !#### # """ """ #???? | | ##???## #??# =[ k##############???? | | ###### #### == #?????????????? | | % k #?????????????? | | % "Y" #?????#???????? | | """ #?????????????? | | ##################### #?????#???????? | | ##??????????#??#?????# #?????????????? | | ???#?????????????????# #?????????????? | | ###################### g ###???????????? | | # #???????????? | | # < #?########??? | | # #?# = !#??? | | # ########## ########@ ###?# #??? | | # #? ????# #??????# #???# ! #??? | | # ^# """????# #??????# #???# #??? | | # + "?"??#?# #??????# #???# "T" #??? | | #????????# #??????# #???# %%!#??? | | #????????# #??????# #???####+###??? | | # ???????# #??????# #?????#% =#???? | | ## ###???????# #??????# #?????# = #???? | | ?# #?????????# #??????# #?????# #???? | | ?# #?????????# #??????# #?????## ##???? | | ?# #?????????# #??????# #??????# #????? | | ?# #??######## #??????#o #??????# #????? | | ?# #??# [ # ######## #??????# #????? | | ?# #??# # # # #??????# #????? | | ?# #??#""" # # """" # #??##### #????? | | ?# #??#""" # # ""R" # #??# # #????? | | ?# #??#""" + + "" " # #??# # #????? | | ?# #??# # # # #??# # ##???? | | ## #??######## # !# #??# + #???? | | ########### ######## #??# # #???? | | # # #??# # #???? | | # # #??# # #???? | | # " # #####+## #???? | | ##########+#### """ + #???? | | ##??????# # """ # #???? | +----------------------------------------------------+ Best States ------------- Heat Dissipation 39 Energy Generation 14 Energy Capacity 250 Matter Stores 300 Matter Capacity 300 Sight Range 16 Terrain Scan Range 16 Terrain Scan Density 10 Core Shielding 20 Evasion (%) 50 Item Schematics ----------------- None Robot Schematics ------------------ None Fabricated ------------ Nothing Alien Tech Used ----------------- None Achievements -------------- None Challenges ------------ None Game ------ Seed MappingIonMaul Manual? 0 Play Time 00:12:25 Cumulative 37.0 hours Start 2024.05.04 @ 17:21:25 End 2024.05.04 @ 17:34:53 Sessions 1 Manual Loads 0 Difficulty Rogue Special Mode None Game No. 58 Rogue 57 Adventurer 1 Explorer 0 Win Type - Total 0 Types 0/0/0/0/0/0/0/0/0 Lore% 36 Gallery% 38 Achievement% 31 Wizard Run 0 Options --------- Layout 1 ASCII 0 Keyboard 0 Movement Mouse Keybinds 0 Fullscreen 1 Font 24/Smallcaps Map View 50x40 Zoom Use 0% Tactical HUD 0 Map Filters NONE Filters NONE Steam 1 RUN: 117f78fd-abf0-44c6-99c3-a0f4b55a9f0c